{"text_format":"1","workbook":"xlsx","n_sheets":3,"sheets":["Manually Creating Schedule","Use of Combo Box","Creating Monthly Time Schedule"],"not_rendered":{"charts":0,"images":0,"macros":1,"external_links":0,"defined_names":4,"comments":0,"pivot_tables":0},"unopened":[],"bounds":{"document_bytes":16777216,"sheet_cells":100000,"rows_first":2000,"rows_last":500,"rows_between":2000,"halvings":0,"cell_chars":16384,"cell_head_chars":4096},"cells_cut":0,"cells_raw":0,"read":"whole","date_system":"1900"}

{"sheet":"Manually Creating Schedule","index":0,"n_rows":13,"n_cols":34,"rows_kept":13,"cut":false,"hidden":false,"merged":[[1,1,1,32],[5,2,5,32],[3,6,3,7],[3,9,3,10],[3,16,3,17],[3,18,3,19],[3,3,3,4],[5,1,6,1]]}
[]
[null,"Manually Creating Monthly Work Schedule"]
[]
[null,"Shift","M","Morning",null,"D","Day",null,"E","Evening",null,null,null,null,null,null,"Year",null,2022,null,null,null,null,null,null,null,null,null,null,null,null,null,null,"Presentation"]
[null,null,null,null,null,null,null,null,null,null,null,null,null,null,null,null,null,null,null,null,null,null,null,null,null,null,null,null,null,null,null,null,null,"Field Visit"]
[null,"JANUARY","Work Distribution",null,null,null,null,null,null,null,null,null,null,null,null,null,null,null,null,null,null,null,null,null,null,null,null,null,null,null,null,null,null,"Conference"]
[null,null,"Sat","Sun","Mon","Tue","Wed","Thu","Fri","Sat","Sun","Mon","Tue","Wed","Thu","Fri","Sat","Sun","Mon","Tue","Wed","Thu","Fri","Sat","Sun","Mon","Tue","Wed","Thu","Fri","Sat","Sun","Mon","Report Submission"]
[null,"Work Type",1,2,3,4,5,6,7,8,9,10,11,12,13,14,15,16,17,18,19,20,21,22,23,24,25,26,27,28,29,30,31,"Meeting"]
[null,"Presentation",null,null,null,null,null,null,null,null,null,"E",null,null,null,null,"M",null,null,null,null,null,null,null,null,null,null,null,null,"E"]
[null,"Field Visit",null,"M",null,null,null,null,null,null,null,null,"D",null,null,null,null,null,"M",null,null,null,"M",null,null,null,"M",null,null,null,null,"D"]
[null,"Conference",null,null,null,"D",null,"M"]
[null,"Report Submission",null,null,null,null,null,null,"E",null,null,null,null,"M",null,"D"]
[null,"Meeting",null,null,"E",null,null,null,null,null,"M",null,null,null,null,null,null,null,null,null,"E",null,null,null,null,"D",null,null,null,"E"]

{"sheet":"Use of Combo Box","index":1,"n_rows":15,"n_cols":34,"rows_kept":15,"cut":false,"hidden":false,"merged":[[1,1,1,33]]}
[]
[null,"Use of Combo Box"]
[]
[null,1,null,null,null,null,null,null,null,null,null,null,null,null,null,null,null,null,null,null,null,null,null,null,null,null,null,null,null,null,null,null,null,"January"]
[null,null,null,null,null,null,null,null,null,null,null,null,null,null,null,null,null,null,null,null,null,null,null,null,null,null,null,null,null,null,null,null,null,"February"]
[null,"Year",null,null,null,null,null,null,null,null,null,null,null,null,null,null,null,null,null,null,null,null,null,null,null,null,null,null,null,null,null,null,null,"March"]
[null,2022,null,null,null,null,null,null,null,null,null,null,null,null,null,null,null,null,null,null,null,null,null,null,null,null,null,null,null,null,null,null,null,"April"]
[null,null,null,null,null,null,null,null,null,null,null,null,null,null,null,null,null,null,null,null,null,null,null,null,null,null,null,null,null,null,null,null,null,"May"]
[null,null,{"$f":"DATE(B7,B4,1)","v":"2022-01-01"},{"$f":"C9+1","v":"2022-01-02"},{"$f":"D9+1","v":"2022-01-03"},"2022-01-04","2022-01-05","2022-01-06","2022-01-07","2022-01-08","2022-01-09","2022-01-10","2022-01-11","2022-01-12","2022-01-13","2022-01-14","2022-01-15","2022-01-16","2022-01-17","2022-01-18","2022-01-19","2022-01-20","2022-01-21","2022-01-22","2022-01-23","2022-01-24","2022-01-25","2022-01-26","2022-01-27","2022-01-28","2022-01-29","2022-01-30","2022-01-31","June"]
[null,null,null,"Weekend",null,null,null,"Quiz",null,null,"Weekend",null,null,"Presentation",null,null,null,"Weekend",null,null,null,"Quiz",null,null,"Weekend",null,null,null,"Quiz",null,null,"Weekend",null,"July"]
[null,null,null,null,null,null,null,null,null,null,null,null,null,null,null,null,null,null,null,null,null,null,null,null,null,null,null,null,null,null,null,null,null,"August"]
[null,null,null,null,null,null,null,null,null,null,null,null,null,null,null,null,null,null,null,null,null,null,null,null,null,null,null,null,null,null,null,null,null,"September"]
[null,null,null,null,null,null,null,null,null,null,null,null,null,null,null,null,null,null,null,null,null,null,null,null,null,null,null,null,null,null,null,null,null,"October"]
[null,null,null,null,null,null,null,null,null,null,null,null,null,null,null,null,null,null,null,null,null,null,null,null,null,null,null,null,null,null,null,null,null,"November"]
[null,null,null,null,null,null,null,null,null,null,null,null,null,null,null,null,null,null,null,null,null,null,null,null,null,null,null,null,null,null,null,null,null,"December"]

{"sheet":"Creating Monthly Time Schedule","index":2,"n_rows":15,"n_cols":11,"rows_kept":15,"cut":false,"hidden":false,"merged":[[1,1,1,8]]}
[]
[null,"Creating Monthly Time Schedule"]
[]
[null,"Month","January",null,"Week",1,null,null,null,"January",1]
[null,null,null,null,null,null,null,null,null,"February",2]
[null,"Time","Sunday","Monday","Tuesday","Wednesday","Thursday","Friday","Saturday","March",3]
[null,"09:00:00","Breakfast","Breakfast","Breakfast","Breakfast","Breakfast","Breakfast","Breakfast","April",4]
[null,"10:00:00","Swimming","Math Class","Swimming",null,null,"Swimming","Math Class","May"]
[null,"11:00:00",null,"English Class",null,"English Class","Math Class",null,null,"June"]
[null,"12:00:00",null,null,"Math Class",null,null,null,null,"July"]
[null,"13:00:00","Lunch","Lunch","Lunch","Lunch","Lunch","Lunch","Lunch","August"]
[null,"14:00:00",null,null,null,null,null,null,null,"September"]
[null,"15:00:00","English Class",null,null,null,null,"English Class",null,"October"]
[null,"16:00:00",null,null,null,"Piano Class",null,null,null,"November"]
[null,"17:00:00",null,"Piano Class",null,null,null,null,"Piano Class","December"]